[Event "Titled Tuesday Blitz June 27 Early 2023"]
[White "Maluco_do_Natal_00"]
[Black "Nithyalakshmi, Sivanesan"]
[BlackFideId "5706955"]
[WhiteElo "2061"]
[BlackElo "2336"]
[Result "0-1"]
[Round "6"]
[TimeControl "180+2"]
[Date "2023.06.27"]
[WhiteClock "0:00:00"]
[BlackClock "0:00:44"]
[Board "191"]

1. e4 {[%clk 0:02:59]}  e6 {[%clk 0:02:59]} 2. d4 {[%clk 0:02:58]}  d5 {[%clk 0:03:00]} 3. Nc3 {[%clk 0:02:58]}  Nf6 {[%clk 0:02:57]} 4. e5 {[%clk 0:02:59]}  Nfd7 {[%clk 0:02:55]} 5. f4 {[%clk 0:02:59]}  c5 {[%clk 0:02:54]} 6. Nf3 {[%clk 0:02:59]}  Nc6 {[%clk 0:02:53]} 7. Be3 {[%clk 0:03:00]}  a6 {[%clk 0:02:50]} 8. Qd2 {[%clk 0:02:48]}  b5 {[%clk 0:02:36]} 9. a3 {[%clk 0:02:47]}  Qb6 {[%clk 0:02:33]} 10. Be2 {[%clk 0:02:36]}  Bb7 {[%clk 0:02:24]} 11. O-O {[%clk 0:02:20]}  Be7 {[%clk 0:02:19]} 12. Kh1 {[%clk 0:02:16]}  f6 {[%clk 0:02:14]} 13. exf6 {[%clk 0:01:52]}  Nxf6 {[%clk 0:02:14]} 14. Rad1 {[%clk 0:01:33]}  O-O {[%clk 0:01:56]} 15. dxc5 {[%clk 0:01:17]}  Bxc5 {[%clk 0:01:55]} 16. Bxc5 {[%clk 0:01:17]}  Qxc5 {[%clk 0:01:55]} 17. Nd4 {[%clk 0:01:04]}  Nxd4 {[%clk 0:01:52]} 18. Qxd4 {[%clk 0:01:05]}  Qxd4 {[%clk 0:01:49]} 19. Rxd4 {[%clk 0:01:06]}  Rac8 {[%clk 0:01:46]} 20. Kg1 {[%clk 0:01:01]}  Nd7 {[%clk 0:01:33]} 21. g3 {[%clk 0:00:51]}  Rc5 {[%clk 0:01:20]} 22. Bg4 {[%clk 0:00:50]}  Kf7 {[%clk 0:01:15]} 23. Re1 {[%clk 0:00:40]}  Re8 {[%clk 0:01:15]} 24. Re2 {[%clk 0:00:17]}  Nf6 {[%clk 0:01:14]} 25. Bf3 {[%clk 0:00:12]}  a5 {[%clk 0:01:08]} 26. g4 {[%clk 0:00:11]}  Ba6 {[%clk 0:00:55]} 27. Re5 {[%clk 0:00:09]}  Nd7 {[%clk 0:00:54]} 28. Re1 {[%clk 0:00:06]}  Rb8 {[%clk 0:00:49]} 29. g5 {[%clk 0:00:06]}  b4 {[%clk 0:00:48]} 30. axb4 {[%clk 0:00:06]}  axb4 {[%clk 0:00:48]} 31. Na4 {[%clk 0:00:05]}  Rxc2 {[%clk 0:00:48]} 32. h4 {[%clk 0:00:01]}  Bb5 {[%clk 0:00:44]} 33. b3 {[%clk 0:00:01]}  Bxa4 {[%clk 0:00:44]} 34. bxa4 {[%clk 0:00:01]}  b3 {[%clk 0:00:44]} 35. Rb1 {[%clk 0:00:00]}  b2 {[%clk 0:00:44]} 0-1


[Site "https://www.chess.com"]

[Event "Titled Tuesday Blitz June 27 Early 2023"]
[White "Blokhin, Sofia"]
[Black "Guevara Sanchez, Erick Marvin"]
[WhiteFideId "4508190"]
[BlackFideId "6700136"]
[WhiteElo "2304"]
[BlackElo "2001"]
[Result "1-0"]
[Round "6"]
[TimeControl "180+2"]
[Date "2023.06.27"]
[WhiteClock "0:00:10"]
[BlackClock "0:00:42"]
[Board "194"]

1. d4 {[%clk 0:03:00]}  Nf6 {[%clk 0:02:59]} 2. c4 {[%clk 0:03:00]}  e6 {[%clk 0:02:59]} 3. Nc3 {[%clk 0:03:00]}  Bb4 {[%clk 0:02:57]} 4. f3 {[%clk 0:03:00]}  d5 {[%clk 0:02:56]} 5. a3 {[%clk 0:03:00]}  Bxc3+ {[%clk 0:02:52]} 6. bxc3 {[%clk 0:03:00]}  O-O {[%clk 0:02:51]} 7. e3 {[%clk 0:02:58]}  c5 {[%clk 0:02:49]} 8. cxd5 {[%clk 0:02:57]}  exd5 {[%clk 0:02:48]} 9. Bd2 {[%clk 0:02:58]}  c4 {[%clk 0:02:48]} 10. Nh3 {[%clk 0:02:57]}  Nc6 {[%clk 0:02:41]} 11. Nf4 {[%clk 0:02:55]}  Re8 {[%clk 0:02:40]} 12. Be2 {[%clk 0:02:53]}  Qc7 {[%clk 0:02:34]} 13. Qc2 {[%clk 0:02:49]}  Ne7 {[%clk 0:02:28]} 14. O-O {[%clk 0:02:39]}  Nf5 {[%clk 0:02:27]} 15. e4 {[%clk 0:02:15]}  dxe4 {[%clk 0:02:26]} 16. fxe4 {[%clk 0:02:12]}  Nxe4 {[%clk 0:02:26]} 17. Bf3 {[%clk 0:01:53]}  Nxd2 {[%clk 0:02:24]} 18. Qxd2 {[%clk 0:01:53]}  Ne3 {[%clk 0:02:24]} 19. Nd5 {[%clk 0:01:41]}  Nxf1 {[%clk 0:01:57]} 20. Nxc7 {[%clk 0:01:36]}  Nxd2 {[%clk 0:01:55]} 21. Nxe8 {[%clk 0:01:35]}  Nxf3+ {[%clk 0:01:55]} 22. gxf3 {[%clk 0:01:34]}  Bd7 {[%clk 0:01:54]} 23. Nc7 {[%clk 0:01:30]}  Rc8 {[%clk 0:01:54]} 24. Nd5 {[%clk 0:01:30]}  Re8 {[%clk 0:01:52]} 25. Kf2 {[%clk 0:01:29]}  Bc6 {[%clk 0:01:51]} 26. Ne3 {[%clk 0:01:28]}  g6 {[%clk 0:01:50]} 27. Nxc4 {[%clk 0:01:27]}  Kg7 {[%clk 0:01:46]} 28. Ne5 {[%clk 0:01:26]}  Rc8 {[%clk 0:01:45]} 29. Nxc6 {[%clk 0:01:23]}  Rxc6 {[%clk 0:01:45]} 30. Rc1 {[%clk 0:01:23]}  Rc4 {[%clk 0:01:40]} 31. Ke3 {[%clk 0:01:19]}  Kf6 {[%clk 0:01:39]} 32. Kd3 {[%clk 0:01:18]}  Rc7 {[%clk 0:01:37]} 33. c4 {[%clk 0:01:17]}  b6 {[%clk 0:01:36]} 34. d5 {[%clk 0:01:16]}  Ke5 {[%clk 0:01:32]} 35. Re1+ {[%clk 0:01:15]}  Kd6 {[%clk 0:01:32]} 36. Re8 {[%clk 0:01:11]}  f6 {[%clk 0:01:31]} 37. Re6+ {[%clk 0:01:10]}  Kc5 {[%clk 0:01:30]} 38. Rxf6 {[%clk 0:01:09]}  b5 {[%clk 0:01:29]} 39. cxb5 {[%clk 0:00:42]}  Kxd5 {[%clk 0:01:28]} 40. a4 {[%clk 0:00:41]}  Rd7 {[%clk 0:01:24]} 41. Ra6 {[%clk 0:00:38]}  Kc5+ {[%clk 0:01:24]} 42. Kc3 {[%clk 0:00:37]}  Rf7 {[%clk 0:01:24]} 43. f4 {[%clk 0:00:36]}  Rxf4 {[%clk 0:01:20]} 44. Rxa7 {[%clk 0:00:32]}  Rf3+ {[%clk 0:01:19]} 45. Kc2 {[%clk 0:00:31]}  Rh3 {[%clk 0:01:19]} 46. Rc7+ {[%clk 0:00:24]}  Kb6 {[%clk 0:01:18]} 47. Rc6+ {[%clk 0:00:23]}  Ka5 {[%clk 0:01:18]} 48. Ra6+ {[%clk 0:00:22]}  Kb4 {[%clk 0:01:16]} 49. b6 {[%clk 0:00:23]}  Rxh2+ {[%clk 0:01:15]} 50. Kd3 {[%clk 0:00:23]}  Rh3+ {[%clk 0:01:14]} 51. Kd4 {[%clk 0:00:23]}  Rb3 {[%clk 0:01:09]} 52. a5 {[%clk 0:00:20]}  Kb5 {[%clk 0:01:05]} 53. Ra8 {[%clk 0:00:19]}  Kc6 {[%clk 0:01:04]} 54. Rc8+ {[%clk 0:00:18]}  Kd7 {[%clk 0:01:03]} 55. Rc7+ {[%clk 0:00:18]}  Kd8 {[%clk 0:01:03]} 56. Rxh7 {[%clk 0:00:19]}  Rb5 {[%clk 0:01:02]} 57. Ra7 {[%clk 0:00:16]}  Kc8 {[%clk 0:01:01]} 58. Kc4 {[%clk 0:00:13]}  Rb1 {[%clk 0:00:54]} 59. Kc5 {[%clk 0:00:12]}  Rc1+ {[%clk 0:00:55]} 60. Kb5 {[%clk 0:00:12]}  Rb1+ {[%clk 0:00:54]} 61. Ka6 {[%clk 0:00:13]}  Kb8 {[%clk 0:00:47]} 62. Rg7 {[%clk 0:00:12]}  Kc8 {[%clk 0:00:45]} 63. Rg8+ {[%clk 0:00:12]}  Kd7 {[%clk 0:00:45]} 64. b7 {[%clk 0:00:12]}  Kc7 {[%clk 0:00:44]} 65. Rg7+ {[%clk 0:00:10]}  Kb8 {[%clk 0:00:43]} 66. Rg8+ {[%clk 0:00:10]}  Kc7 {[%clk 0:00:43]} 67. Rc8+ {[%clk 0:00:09]}  Kd7 {[%clk 0:00:41]} 68. b8=Q {[%clk 0:00:10]}  Rxb8 {[%clk 0:00:40]} 69. Rxb8 {[%clk 0:00:10]}  Kc6 {[%clk 0:00:40]} 70. Rg8 {[%clk 0:00:10]}  g5 {[%clk 0:00:41]} 71. Rxg5 {[%clk 0:00:10]}  Kc7 {[%clk 0:00:42]} 72. Kb5 {[%clk 0:00:09]}  Kb8 {[%clk 0:00:42]} 73. Kb6 {[%clk 0:00:10]}  Ka8 {[%clk 0:00:42]} 74. Rg8# {[%clk 0:00:10]} 1-0


[Site "https://www.chess.com"]

[Event "Titled Tuesday Blitz June 27 Early 2023"]
[White "Alexanian, Nelli"]
[Black "le-castor-faineant"]
[WhiteFideId "4170539"]
[WhiteElo "1960"]
[BlackElo "2146"]
[Result "0-1"]
[Round "6"]
[TimeControl "180+2"]
[Date "2023.06.27"]
[WhiteClock "0:00:00"]
[BlackClock "0:00:20"]
[Board "196"]

1. d4 {[%clk 0:03:00]}  Nf6 {[%clk 0:02:57]} 2. c4 {[%clk 0:03:00]}  g6 {[%clk 0:02:56]} 3. h4 {[%clk 0:02:58]}  Bg7 {[%clk 0:02:57]} 4. Nc3 {[%clk 0:02:53]}  d6 {[%clk 0:02:56]} 5. e4 {[%clk 0:02:44]}  O-O {[%clk 0:02:42]} 6. h5 {[%clk 0:02:38]}  gxh5 {[%clk 0:02:35]} 7. Be2 {[%clk 0:02:35]}  c5 {[%clk 0:02:23]} 8. d5 {[%clk 0:02:28]}  Bg4 {[%clk 0:02:20]} 9. f3 {[%clk 0:02:21]}  Bc8 {[%clk 0:02:17]} 10. Nh3 {[%clk 0:02:14]}  Nbd7 {[%clk 0:02:16]} 11. Nf4 {[%clk 0:02:13]}  Ne5 {[%clk 0:02:16]} 12. Nxh5 {[%clk 0:02:11]}  Nxh5 {[%clk 0:02:15]} 13. Rxh5 {[%clk 0:02:10]}  Ng6 {[%clk 0:02:15]} 14. Be3 {[%clk 0:01:59]}  f5 {[%clk 0:02:13]} 15. exf5 {[%clk 0:01:52]}  Rxf5 {[%clk 0:02:11]} 16. g4 {[%clk 0:01:46]}  Rxh5 {[%clk 0:02:06]} 17. gxh5 {[%clk 0:01:45]}  Ne5 {[%clk 0:02:05]} 18. Qc2 {[%clk 0:01:32]}  Qf8 {[%clk 0:02:04]} 19. O-O-O {[%clk 0:01:24]}  Bf5 {[%clk 0:02:00]} 20. Ne4 {[%clk 0:01:23]}  Kh8 {[%clk 0:01:53]} 21. Rg1 {[%clk 0:01:12]}  Bxe4 {[%clk 0:01:35]} 22. Qxe4 {[%clk 0:01:09]}  Bh6 {[%clk 0:01:33]} 23. f4 {[%clk 0:01:04]}  Nd7 {[%clk 0:01:30]} 24. Bd2 {[%clk 0:00:52]}  Nf6 {[%clk 0:01:15]} 25. Bc3 {[%clk 0:00:52]}  Bg7 {[%clk 0:01:13]} 26. h6 {[%clk 0:00:46]}  Bxh6 {[%clk 0:01:10]} 27. Bd3 {[%clk 0:00:44]}  Qf7 {[%clk 0:01:03]} 28. Rh1 {[%clk 0:00:37]}  Qg7 {[%clk 0:00:58]} 29. Bxf6 {[%clk 0:00:18]}  exf6 {[%clk 0:00:59]} 30. Kc2 {[%clk 0:00:17]}  Rg8 {[%clk 0:00:50]} 31. Qf5 {[%clk 0:00:16]}  Re8 {[%clk 0:00:32]} 32. Qh3 {[%clk 0:00:14]}  Bxf4 {[%clk 0:00:27]} 33. Qxh7+ {[%clk 0:00:13]}  Qxh7 {[%clk 0:00:27]} 34. Rxh7+ {[%clk 0:00:13]}  Kg8 {[%clk 0:00:28]} 35. Rxb7 {[%clk 0:00:12]}  Ra8 {[%clk 0:00:25]} 36. Bf5 {[%clk 0:00:11]}  Be5 {[%clk 0:00:24]} 37. Be6+ {[%clk 0:00:10]}  Kh8 {[%clk 0:00:23]} 38. Bd7 {[%clk 0:00:10]}  a5 {[%clk 0:00:21]} 39. a4 {[%clk 0:00:09]}  Rg8 {[%clk 0:00:18]} 40. Kd3 {[%clk 0:00:09]}  Rg2 {[%clk 0:00:12]} 41. Ke4 {[%clk 0:00:09]}  Rxb2 {[%clk 0:00:08]} 42. Rxb2 {[%clk 0:00:07]}  Bxb2 {[%clk 0:00:08]} 43. Kf5 {[%clk 0:00:07]}  Kg7 {[%clk 0:00:08]} 44. Be6 {[%clk 0:00:06]}  Be5 {[%clk 0:00:09]} 45. Bd7 {[%clk 0:00:06]}  Kh6 {[%clk 0:00:09]} 46. Be6 {[%clk 0:00:06]}  Kh5 {[%clk 0:00:10]} 47. Bd7 {[%clk 0:00:06]}  Kh4 {[%clk 0:00:10]} 48. Bb5 {[%clk 0:00:06]}  Kg3 {[%clk 0:00:11]} 49. Bc6 {[%clk 0:00:05]}  Kf3 {[%clk 0:00:12]} 50. Bb5 {[%clk 0:00:05]}  Ke3 {[%clk 0:00:13]} 51. Ba6 {[%clk 0:00:03]}  Kd4 {[%clk 0:00:14]} 52. Bb5 {[%clk 0:00:03]}  Kc3 {[%clk 0:00:15]} 53. Ke4 {[%clk 0:00:02]}  Kb4 {[%clk 0:00:16]} 54. Kf5 {[%clk 0:00:02]}  Kb3 {[%clk 0:00:17]} 55. Ke4 {[%clk 0:00:02]}  Kc3 {[%clk 0:00:17]} 56. Kf5 {[%clk 0:00:02]}  Kd4 {[%clk 0:00:18]} 57. Kg4 {[%clk 0:00:02]}  Ke4 {[%clk 0:00:18]} 58. Kh3 {[%clk 0:00:01]}  f5 {[%clk 0:00:18]} 59. Kg2 {[%clk 0:00:01]}  f4 {[%clk 0:00:18]} 60. Kf2 {[%clk 0:00:01]}  Bd4+ {[%clk 0:00:18]} 61. Ke2 {[%clk 0:00:01]}  f3+ {[%clk 0:00:18]} 62. Kf1 {[%clk 0:00:01]}  Ke3 {[%clk 0:00:19]} 63. Bd7 {[%clk 0:00:00]}  Bc3 {[%clk 0:00:20]} 0-1


[Site "https://www.chess.com"]

[Event "Titled Tuesday Blitz June 27 Early 2023"]
[White "Thecourseoisildur"]
[Black "Skiadopoulos, Nikolaos"]
[BlackFideId "4200772"]
[WhiteElo "2493"]
[BlackElo "1922"]
[Result "1-0"]
[Round "6"]
[TimeControl "180+2"]
[Date "2023.06.27"]
[WhiteClock "0:01:50"]
[BlackClock "0:00:06"]
[Board "197"]

1. e4 {[%clk 0:02:52]}  c5 {[%clk 0:02:58]} 2. Nf3 {[%clk 0:02:52]}  Nc6 {[%clk 0:02:58]} 3. Bb5 {[%clk 0:02:50]}  Na5 {[%clk 0:02:57]} 4. O-O {[%clk 0:02:50]}  a6 {[%clk 0:02:57]} 5. Be2 {[%clk 0:02:50]}  Nc6 {[%clk 0:02:57]} 6. d4 {[%clk 0:02:48]}  cxd4 {[%clk 0:02:57]} 7. Nxd4 {[%clk 0:02:49]}  e5 {[%clk 0:02:56]} 8. Nf5 {[%clk 0:02:49]}  d5 {[%clk 0:02:55]} 9. exd5 {[%clk 0:02:39]}  Bxf5 {[%clk 0:02:55]} 10. dxc6 {[%clk 0:02:40]}  bxc6 {[%clk 0:02:50]} 11. Nc3 {[%clk 0:02:35]}  Qxd1 {[%clk 0:02:45]} 12. Bxd1 {[%clk 0:02:35]}  Nf6 {[%clk 0:02:37]} 13. Bf3 {[%clk 0:02:33]}  e4 {[%clk 0:02:36]} 14. Bxe4 {[%clk 0:02:23]}  Nxe4 {[%clk 0:02:32]} 15. Nxe4 {[%clk 0:02:22]}  Be7 {[%clk 0:02:32]} 16. Ng3 {[%clk 0:02:19]}  Bxc2 {[%clk 0:02:31]} 17. Be3 {[%clk 0:02:19]}  O-O {[%clk 0:02:26]} 18. Rac1 {[%clk 0:02:18]}  Bd3 {[%clk 0:02:22]} 19. Rfd1 {[%clk 0:02:19]}  Rad8 {[%clk 0:02:13]} 20. Bb6 {[%clk 0:02:17]}  Rd5 {[%clk 0:02:07]} 21. Rxc6 {[%clk 0:02:11]}  h5 {[%clk 0:01:59]} 22. Nxh5 {[%clk 0:02:05]}  Rxh5 {[%clk 0:01:34]} 23. Rxd3 {[%clk 0:02:04]}  Bf6 {[%clk 0:01:34]} 24. b3 {[%clk 0:01:59]}  Re8 {[%clk 0:01:30]} 25. Re3 {[%clk 0:01:55]}  Be5 {[%clk 0:00:06]} 26. f4 {[%clk 0:01:50]} 1-0


[Site "https://www.chess.com"]

[Event "Titled Tuesday Blitz June 27 Early 2023"]
[White "Flis, Pawel"]
[Black "Tuleyeva-Aketayeva, Dana"]
[WhiteFideId "1112864"]
[BlackFideId "13701932"]
[WhiteElo "2128"]
[BlackElo "2213"]
[Result "0-1"]
[Round "6"]
[TimeControl "180+2"]
[Date "2023.06.27"]
[WhiteClock "0:00:00"]
[BlackClock "0:00:04"]
[Board "201"]

1. e4 {[%clk 0:02:54]}  c5 {[%clk 0:03:00]} 2. d4 {[%clk 0:02:53]}  cxd4 {[%clk 0:03:00]} 3. Nf3 {[%clk 0:02:54]}  Nc6 {[%clk 0:02:57]} 4. Nxd4 {[%clk 0:02:54]}  Nf6 {[%clk 0:02:58]} 5. Nc3 {[%clk 0:02:54]}  e5 {[%clk 0:02:58]} 6. Ndb5 {[%clk 0:02:54]}  d6 {[%clk 0:02:59]} 7. Bg5 {[%clk 0:02:52]}  a6 {[%clk 0:02:58]} 8. Na3 {[%clk 0:02:52]}  b5 {[%clk 0:02:59]} 9. Nd5 {[%clk 0:02:52]}  Be7 {[%clk 0:02:59]} 10. Bxf6 {[%clk 0:02:52]}  Bxf6 {[%clk 0:02:59]} 11. c3 {[%clk 0:02:53]}  O-O {[%clk 0:02:58]} 12. Nc2 {[%clk 0:02:52]}  Be6 {[%clk 0:02:57]} 13. a4 {[%clk 0:02:50]}  Ne7 {[%clk 0:02:52]} 14. Nxf6+ {[%clk 0:02:47]}  gxf6 {[%clk 0:02:52]} 15. axb5 {[%clk 0:02:47]}  axb5 {[%clk 0:02:52]} 16. Bxb5 {[%clk 0:02:36]}  d5 {[%clk 0:02:52]} 17. exd5 {[%clk 0:02:24]}  Rxa1 {[%clk 0:02:47]} 18. Qxa1 {[%clk 0:02:16]}  Qxd5 {[%clk 0:02:38]} 19. Bf1 {[%clk 0:01:41]}  Qe4+ {[%clk 0:02:36]} 20. Ne3 {[%clk 0:01:36]}  Nf5 {[%clk 0:02:29]} 21. Qc1 {[%clk 0:01:32]}  Nxe3 {[%clk 0:01:43]} 22. fxe3 {[%clk 0:01:21]}  Qh4+ {[%clk 0:01:38]} 23. g3 {[%clk 0:01:16]}  Qe4 {[%clk 0:01:32]} 24. Rg1 {[%clk 0:01:12]}  Bb3 {[%clk 0:01:31]} 25. Kf2 {[%clk 0:00:55]}  Rd8 {[%clk 0:01:19]} 26. Bg2 {[%clk 0:00:54]}  Qf5+ {[%clk 0:00:48]} 27. Ke2 {[%clk 0:00:41]}  Qd3+ {[%clk 0:00:22]} 28. Kf2 {[%clk 0:00:39]}  Qd2+ {[%clk 0:00:22]} 29. Qxd2 {[%clk 0:00:38]}  Rxd2+ {[%clk 0:00:23]} 30. Ke1 {[%clk 0:00:31]}  Rxb2 {[%clk 0:00:22]} 31. Be4 {[%clk 0:00:18]}  Rxh2 {[%clk 0:00:14]} 32. Rh1 {[%clk 0:00:18]}  Rb2 {[%clk 0:00:08]} 33. Bd3 {[%clk 0:00:11]}  Bd5 {[%clk 0:00:07]} 34. Rh4 {[%clk 0:00:10]}  Rb3 {[%clk 0:00:05]} 35. Kd2 {[%clk 0:00:10]}  Rb2+ {[%clk 0:00:05]} 36. Kc1 {[%clk 0:00:10]}  Rg2 {[%clk 0:00:06]} 37. Rxh7 {[%clk 0:00:07]}  Rxg3 {[%clk 0:00:05]} 38. Kd2 {[%clk 0:00:07]}  e4 {[%clk 0:00:06]} 39. Rh5 {[%clk 0:00:05]}  Rg2+ {[%clk 0:00:03]} 40. Ke1 {[%clk 0:00:03]}  exd3 {[%clk 0:00:03]} 41. Rxd5 {[%clk 0:00:02]}  Re2+ {[%clk 0:00:03]} 42. Kd1 {[%clk 0:00:02]}  Rxe3 {[%clk 0:00:04]} 43. c4 {[%clk 0:00:03]}  Re4 {[%clk 0:00:04]} 44. c5 {[%clk 0:00:02]}  Rc4 {[%clk 0:00:04]} 45. Rxd3 {[%clk 0:00:00]}  Rxc5 {[%clk 0:00:04]} 0-1


[Site "https://www.chess.com"]

[Event "Titled Tuesday Blitz June 27 Early 2023"]
[White "deloewre"]
[Black "Larina, Maria"]
[BlackFideId "24113182"]
[WhiteElo "2118"]
[BlackElo "2190"]
[Result "1/2-1/2"]
[Round "6"]
[TimeControl "180+2"]
[Date "2023.06.27"]
[WhiteClock "0:00:07"]
[BlackClock "0:00:06"]
[Board "202"]

1. c4 {[%clk 0:03:00]}  f5 {[%clk 0:02:57]} 2. Nc3 {[%clk 0:02:59]}  Nf6 {[%clk 0:02:56]} 3. g3 {[%clk 0:02:58]}  e5 {[%clk 0:02:53]} 4. Bg2 {[%clk 0:02:57]}  Be7 {[%clk 0:02:51]} 5. d3 {[%clk 0:02:56]}  d6 {[%clk 0:02:50]} 6. e3 {[%clk 0:02:54]}  O-O {[%clk 0:02:49]} 7. Nge2 {[%clk 0:02:53]}  a5 {[%clk 0:02:46]} 8. O-O {[%clk 0:02:52]}  Nc6 {[%clk 0:02:46]} 9. b3 {[%clk 0:02:50]}  Qe8 {[%clk 0:02:45]} 10. Bb2 {[%clk 0:02:47]}  Qh5 {[%clk 0:02:41]} 11. d4 {[%clk 0:02:46]}  Ng4 {[%clk 0:02:33]} 12. h3 {[%clk 0:02:41]}  Nf6 {[%clk 0:02:30]} 13. Nd5 {[%clk 0:02:33]}  f4 {[%clk 0:01:56]} 14. exf4 {[%clk 0:02:22]}  Bxh3 {[%clk 0:01:52]} 15. Nxf6+ {[%clk 0:02:07]}  Bxf6 {[%clk 0:01:48]} 16. dxe5 {[%clk 0:02:06]}  dxe5 {[%clk 0:01:40]} 17. fxe5 {[%clk 0:01:56]}  Bxe5 {[%clk 0:01:29]} 18. Bxe5 {[%clk 0:01:34]}  Nxe5 {[%clk 0:01:30]} 19. Nf4 {[%clk 0:01:33]}  Qxd1 {[%clk 0:01:11]} 20. Raxd1 {[%clk 0:01:27]}  Bxg2 {[%clk 0:01:07]} 21. Kxg2 {[%clk 0:01:23]}  a4 {[%clk 0:00:54]} 22. Rd5 {[%clk 0:01:19]}  Ng4 {[%clk 0:00:41]} 23. Rg5 {[%clk 0:01:12]}  Nf6 {[%clk 0:00:37]} 24. Re1 {[%clk 0:01:07]}  Rf7 {[%clk 0:00:34]} 25. Rge5 {[%clk 0:01:04]}  axb3 {[%clk 0:00:33]} 26. axb3 {[%clk 0:01:02]}  Ra2 {[%clk 0:00:24]} 27. R1e2 {[%clk 0:00:59]}  Ra1 {[%clk 0:00:22]} 28. Re7 {[%clk 0:00:55]}  g6 {[%clk 0:00:16]} 29. Nd5 {[%clk 0:00:50]}  Nxd5 {[%clk 0:00:14]} 30. cxd5 {[%clk 0:00:48]}  Rb1 {[%clk 0:00:14]} 31. Re8+ {[%clk 0:00:45]}  Kg7 {[%clk 0:00:14]} 32. R8e3 {[%clk 0:00:42]}  b6 {[%clk 0:00:11]} 33. Rc3 {[%clk 0:00:39]}  h5 {[%clk 0:00:10]} 34. Rec2 {[%clk 0:00:37]}  b5 {[%clk 0:00:07]} 35. Rxc7 {[%clk 0:00:35]}  Rxb3 {[%clk 0:00:07]} 36. d6 {[%clk 0:00:34]}  Rd3 {[%clk 0:00:05]} 37. R2c6 {[%clk 0:00:21]}  Rd2 {[%clk 0:00:03]} 38. Rxf7+ {[%clk 0:00:19]}  Kxf7 {[%clk 0:00:04]} 39. Kf3 {[%clk 0:00:18]}  Ke6 {[%clk 0:00:04]} 40. Rb6 {[%clk 0:00:16]}  Rxd6 {[%clk 0:00:05]} 41. Rxb5 {[%clk 0:00:15]}  Rd5 {[%clk 0:00:05]} 42. Rxd5 {[%clk 0:00:13]}  Kxd5 {[%clk 0:00:04]} 43. Kf4 {[%clk 0:00:13]}  Ke6 {[%clk 0:00:05]} 44. Kg5 {[%clk 0:00:13]}  Kf7 {[%clk 0:00:06]} 45. f3 {[%clk 0:00:11]}  Kg7 {[%clk 0:00:06]} 46. g4 {[%clk 0:00:11]}  hxg4 {[%clk 0:00:06]} 47. fxg4 {[%clk 0:00:10]}  Kf7 {[%clk 0:00:04]} 48. Kf4 {[%clk 0:00:09]}  Kf6 {[%clk 0:00:03]} 49. Kf3 {[%clk 0:00:08]}  g5 {[%clk 0:00:03]} 50. Ke4 {[%clk 0:00:07]}  Ke6 {[%clk 0:00:04]} 51. Kd4 {[%clk 0:00:06]}  Kd6 {[%clk 0:00:04]} 52. Ke4 {[%clk 0:00:06]}  Ke6 {[%clk 0:00:05]} 53. Kd4 {[%clk 0:00:06]}  Kd6 {[%clk 0:00:05]} 54. Ke4 {[%clk 0:00:07]}  Ke6 {[%clk 0:00:06]} 1/2-1/2


[Site "https://www.chess.com"]

[Event "Titled Tuesday Blitz June 27 Early 2023"]
[White "Prohorov, Olexandr"]
[Black "Winkels, Marcel"]
[WhiteFideId "14105578"]
[BlackFideId "1003887"]
[WhiteElo "2164"]
[BlackElo "2108"]
[Result "1-0"]
[Round "6"]
[TimeControl "180+2"]
[Date "2023.06.27"]
[WhiteClock "0:00:32"]
[BlackClock "0:00:00"]
[Board "204"]

1. e4 {[%clk 0:03:00]}  Nf6 {[%clk 0:02:58]} 2. e5 {[%clk 0:03:01]}  Nd5 {[%clk 0:02:58]} 3. c4 {[%clk 0:03:01]}  Nb6 {[%clk 0:02:57]} 4. a4 {[%clk 0:03:02]}  a5 {[%clk 0:02:57]} 5. d4 {[%clk 0:03:02]}  d6 {[%clk 0:02:55]} 6. exd6 {[%clk 0:03:03]}  exd6 {[%clk 0:02:55]} 7. Nc3 {[%clk 0:03:04]}  Be7 {[%clk 0:02:54]} 8. Nf3 {[%clk 0:03:03]}  Bg4 {[%clk 0:02:52]} 9. Be2 {[%clk 0:03:01]}  Nc6 {[%clk 0:02:50]} 10. b3 {[%clk 0:02:59]}  O-O {[%clk 0:02:49]} 11. O-O {[%clk 0:02:59]}  Bf6 {[%clk 0:02:49]} 12. Be3 {[%clk 0:03:00]}  Re8 {[%clk 0:02:38]} 13. Qd2 {[%clk 0:03:00]}  Qd7 {[%clk 0:02:24]} 14. Rfe1 {[%clk 0:02:55]}  Re7 {[%clk 0:02:21]} 15. Ng5 {[%clk 0:02:51]}  Bxe2 {[%clk 0:02:02]} 16. Rxe2 {[%clk 0:02:52]}  Bxg5 {[%clk 0:02:00]} 17. Bxg5 {[%clk 0:02:50]}  Rxe2 {[%clk 0:02:00]} 18. Nxe2 {[%clk 0:02:47]}  Re8 {[%clk 0:01:58]} 19. Re1 {[%clk 0:02:45]}  Nb4 {[%clk 0:01:57]} 20. Ng3 {[%clk 0:02:43]}  h6 {[%clk 0:01:49]} 21. Bf4 {[%clk 0:02:33]}  Rxe1+ {[%clk 0:01:28]} 22. Qxe1 {[%clk 0:02:32]}  Qe6 {[%clk 0:01:24]} 23. Qxe6 {[%clk 0:02:27]}  fxe6 {[%clk 0:01:23]} 24. Ne2 {[%clk 0:02:23]}  Nd7 {[%clk 0:00:22]} 25. Kf1 {[%clk 0:01:55]}  Nd3 {[%clk 0:00:21]} 26. Be3 {[%clk 0:01:48]}  Kf7 {[%clk 0:00:19]} 27. Ng3 {[%clk 0:01:41]}  b6 {[%clk 0:00:17]} 28. Ke2 {[%clk 0:01:39]}  Nb4 {[%clk 0:00:16]} 29. Bd2 {[%clk 0:01:38]}  Nc6 {[%clk 0:00:14]} 30. Ke3 {[%clk 0:01:34]}  e5 {[%clk 0:00:14]} 31. Ne2 {[%clk 0:01:30]}  Ne7 {[%clk 0:00:10]} 32. Kd3 {[%clk 0:01:24]}  Nf6 {[%clk 0:00:08]} 33. dxe5 {[%clk 0:01:20]}  dxe5 {[%clk 0:00:08]} 34. Nc3 {[%clk 0:01:19]}  Ke6 {[%clk 0:00:08]} 35. Ne4 {[%clk 0:01:10]}  Nc6 {[%clk 0:00:07]} 36. Nxf6 {[%clk 0:01:06]}  gxf6 {[%clk 0:00:06]} 37. Bxh6 {[%clk 0:01:05]}  Nd4 {[%clk 0:00:06]} 38. Kc3 {[%clk 0:01:02]}  Ne2+ {[%clk 0:00:05]} 39. Kd2 {[%clk 0:00:57]}  Nd4 {[%clk 0:00:05]} 40. Be3 {[%clk 0:00:38]}  Nxb3+ {[%clk 0:00:04]} 41. Kc3 {[%clk 0:00:38]}  Nc5 {[%clk 0:00:02]} 42. Bxc5 {[%clk 0:00:38]}  bxc5 {[%clk 0:00:02]} 43. h4 {[%clk 0:00:37]}  f5 {[%clk 0:00:02]} 44. Kd3 {[%clk 0:00:35]}  Kf6 {[%clk 0:00:02]} 45. Ke3 {[%clk 0:00:32]}  Kg6 {[%clk 0:00:02]} 46. Kf3 {[%clk 0:00:32]}  Kh5 {[%clk 0:00:00]} 47. Kg3 {[%clk 0:00:32]} 1-0


[Site "https://www.chess.com"]

[Event "Titled Tuesday Blitz June 27 Early 2023"]
[White "Torres Dominguez, David"]
[Black "Wesolowska, Hanna"]
[WhiteFideId "2220857"]
[BlackFideId "1104683"]
[WhiteElo "2099"]
[BlackElo "2162"]
[Result "1-0"]
[Round "6"]
[TimeControl "180+2"]
[Date "2023.06.27"]
[WhiteClock "0:01:35"]
[BlackClock "0:00:00"]
[Board "205"]

1. e4 {[%clk 0:03:00]}  c5 {[%clk 0:03:00]} 2. Nc3 {[%clk 0:02:59]}  d6 {[%clk 0:03:01]} 3. Bb5+ {[%clk 0:02:58]}  Bd7 {[%clk 0:03:01]} 4. Bxd7+ {[%clk 0:02:58]}  Qxd7 {[%clk 0:03:01]} 5. d3 {[%clk 0:02:58]}  Nf6 {[%clk 0:03:01]} 6. f4 {[%clk 0:02:58]}  e6 {[%clk 0:03:02]} 7. Nf3 {[%clk 0:02:59]}  Be7 {[%clk 0:02:59]} 8. O-O {[%clk 0:02:59]}  b6 {[%clk 0:02:20]} 9. a4 {[%clk 0:02:58]}  O-O {[%clk 0:02:19]} 10. Qe1 {[%clk 0:02:49]}  Nc6 {[%clk 0:02:13]} 11. e5 {[%clk 0:02:46]}  Nd5 {[%clk 0:02:12]} 12. Ne4 {[%clk 0:02:43]}  dxe5 {[%clk 0:02:10]} 13. fxe5 {[%clk 0:02:42]}  Ndb4 {[%clk 0:01:37]} 14. Qg3 {[%clk 0:02:39]}  g6 {[%clk 0:01:26]} 15. Nf6+ {[%clk 0:02:30]}  Bxf6 {[%clk 0:01:22]} 16. exf6 {[%clk 0:02:31]}  Nd4 {[%clk 0:01:15]} 17. Ne5 {[%clk 0:02:25]}  Qd5 {[%clk 0:01:01]} 18. Qg5 {[%clk 0:02:21]}  Ne2+ {[%clk 0:00:32]} 19. Kf2 {[%clk 0:02:03]}  Nxd3+ {[%clk 0:00:12]} 20. cxd3 {[%clk 0:02:01]}  Nxc1 {[%clk 0:00:09]} 21. Qh6 {[%clk 0:01:35]}  Qd4+ {[%clk 0:00:00]} 22. Kf3 {[%clk 0:01:35]} 1-0


[Site "https://www.chess.com"]